[Event "Titled Tuesday Blitz October 31 Late 2023"]
[White "Roberson, Peter T"]
[Black "Harriott, Tyrell"]
[WhiteFideId "412384"]
[BlackFideId "2086484"]
[WhiteElo "2594"]
[BlackElo "2314"]
[Result "1-0"]
[Round "1"]
[TimeControl "180+1"]
[Date "2023.10.31"]
[WhiteClock "0:00:05"]
[BlackClock "0:00:00"]
[Board "125"]

1. e4 {[%clk 0:03:00]}  d5 {[%clk 0:02:58]} 2. exd5 {[%clk 0:02:59]}  Nf6 {[%clk 0:02:57]} 3. d4 {[%clk 0:02:59]}  Qxd5 {[%clk 0:02:56]} 4. Nc3 {[%clk 0:02:58]}  Qa5 {[%clk 0:02:55]} 5. Bd2 {[%clk 0:02:54]}  c6 {[%clk 0:02:53]} 6. Bc4 {[%clk 0:02:54]}  Bf5 {[%clk 0:02:51]} 7. Nd5 {[%clk 0:02:47]}  Qd8 {[%clk 0:02:45]} 8. Nxf6+ {[%clk 0:02:46]}  gxf6 {[%clk 0:02:38]} 9. Nf3 {[%clk 0:02:47]}  Rg8 {[%clk 0:02:36]} 10. O-O {[%clk 0:02:47]}  e6 {[%clk 0:02:32]} 11. c3 {[%clk 0:02:42]}  Nd7 {[%clk 0:02:31]} 12. g3 {[%clk 0:02:41]}  Qc7 {[%clk 0:02:27]} 13. Nh4 {[%clk 0:02:17]}  Bh3 {[%clk 0:02:25]} 14. Re1 {[%clk 0:02:17]}  Bd6 {[%clk 0:02:24]} 15. Qf3 {[%clk 0:02:06]}  O-O-O {[%clk 0:02:05]} 16. b4 {[%clk 0:02:05]}  Rg4 {[%clk 0:02:02]} 17. Kh1 {[%clk 0:01:42]}  Rdg8 {[%clk 0:01:56]} 18. Bf1 {[%clk 0:01:23]}  Rxh4 {[%clk 0:01:52]} 19. gxh4 {[%clk 0:01:15]}  Bg4 {[%clk 0:01:47]} 20. Qg2 {[%clk 0:00:52]}  Rg6 {[%clk 0:01:42]} 21. f3 {[%clk 0:00:44]}  Bf5 {[%clk 0:01:39]} 22. Qf2 {[%clk 0:00:44]}  h5 {[%clk 0:01:38]} 23. Be2 {[%clk 0:00:40]}  Nb6 {[%clk 0:01:23]} 24. Rg1 {[%clk 0:00:40]}  Nd5 {[%clk 0:01:18]} 25. Rxg6 {[%clk 0:00:40]}  fxg6 {[%clk 0:01:18]} 26. Rd1 {[%clk 0:00:32]}  Nf4 {[%clk 0:01:18]} 27. Bxf4 {[%clk 0:00:31]}  Bxf4 {[%clk 0:01:17]} 28. Bd3 {[%clk 0:00:32]}  Bxd3 {[%clk 0:00:58]} 29. Rxd3 {[%clk 0:00:33]}  Qd6 {[%clk 0:00:57]} 30. Qe2 {[%clk 0:00:32]}  Qd5 {[%clk 0:00:54]} 31. Rd1 {[%clk 0:00:32]}  Kd7 {[%clk 0:00:52]} 32. Rg1 {[%clk 0:00:31]}  Qf5 {[%clk 0:00:51]} 33. Qg2 {[%clk 0:00:28]}  g5 {[%clk 0:00:50]} 34. hxg5 {[%clk 0:00:29]}  fxg5 {[%clk 0:00:49]} 35. Qe2 {[%clk 0:00:28]}  Qh3 {[%clk 0:00:46]} 36. Rg2 {[%clk 0:00:24]}  Qf5 {[%clk 0:00:44]} 37. Qe4 {[%clk 0:00:24]}  Qb5 {[%clk 0:00:43]} 38. Rg1 {[%clk 0:00:20]}  Qa4 {[%clk 0:00:42]} 39. Re1 {[%clk 0:00:15]}  Qxa2 {[%clk 0:00:40]} 40. Re2 {[%clk 0:00:14]}  Qa1+ {[%clk 0:00:40]} 41. Kg2 {[%clk 0:00:15]}  e5 {[%clk 0:00:33]} 42. Qf5+ {[%clk 0:00:15]}  Kd6 {[%clk 0:00:30]} 43. dxe5+ {[%clk 0:00:15]}  Kc7 {[%clk 0:00:29]} 44. e6 {[%clk 0:00:14]}  Qd1 {[%clk 0:00:23]} 45. Qe4 {[%clk 0:00:12]}  Qd8 {[%clk 0:00:22]} 46. e7 {[%clk 0:00:12]}  Qe8 {[%clk 0:00:22]} 47. Qf5 {[%clk 0:00:10]}  h4 {[%clk 0:00:18]} 48. Qf8 {[%clk 0:00:09]}  Kd7 {[%clk 0:00:18]} 49. Qxe8+ {[%clk 0:00:09]}  Kxe8 {[%clk 0:00:18]} 50. Kh3 {[%clk 0:00:07]}  a6 {[%clk 0:00:18]} 51. Kg4 {[%clk 0:00:07]}  b6 {[%clk 0:00:18]} 52. Kf5 {[%clk 0:00:08]}  Bd6 {[%clk 0:00:09]} 53. Ke6 {[%clk 0:00:08]}  Bc7 {[%clk 0:00:06]} 54. Rd2 {[%clk 0:00:04]}  a5 {[%clk 0:00:03]} 55. bxa5 {[%clk 0:00:04]}  bxa5 {[%clk 0:00:04]} 56. Rd7 {[%clk 0:00:05]}  Bb6 {[%clk 0:00:03]} 57. Rb7 {[%clk 0:00:05]}  Bc7 {[%clk 0:00:00]} 58. Rxc7 {[%clk 0:00:05]} 1-0


[Site "https://www.chess.com"]

[Event "Titled Tuesday Blitz October 31 Late 2023"]
[White "Jesseinkman"]
[Black "Janturin, Artur"]
[BlackFideId "4130022"]
[WhiteElo "2304"]
[BlackElo "2587"]
[Result "1-0"]
[Round "1"]
[TimeControl "180+1"]
[Date "2023.10.31"]
[WhiteClock "0:00:10"]
[BlackClock "0:00:00"]
[Board "128"]

1. d4 {[%clk 0:02:59]}  e6 {[%clk 0:02:52]} 2. Bf4 {[%clk 0:02:57]}  d5 {[%clk 0:02:48]} 3. Nc3 {[%clk 0:02:57]}  Bd6 {[%clk 0:02:44]} 4. e3 {[%clk 0:02:55]}  Nf6 {[%clk 0:02:39]} 5. Nf3 {[%clk 0:02:55]}  O-O {[%clk 0:02:36]} 6. Bd3 {[%clk 0:02:55]}  Bxf4 {[%clk 0:02:30]} 7. exf4 {[%clk 0:02:55]}  b6 {[%clk 0:02:31]} 8. h4 {[%clk 0:02:53]}  c5 {[%clk 0:02:25]} 9. h5 {[%clk 0:02:44]}  h6 {[%clk 0:02:20]} 10. Qd2 {[%clk 0:02:30]}  Nc6 {[%clk 0:02:15]} 11. O-O-O {[%clk 0:02:30]}  Bb7 {[%clk 0:02:06]} 12. g4 {[%clk 0:02:26]}  Nxg4 {[%clk 0:01:58]} 13. Rhg1 {[%clk 0:02:20]}  f5 {[%clk 0:01:57]} 14. Ne5 {[%clk 0:02:13]}  Nxd4 {[%clk 0:01:47]} 15. Nxg4 {[%clk 0:02:02]}  fxg4 {[%clk 0:01:46]} 16. Rxg4 {[%clk 0:01:58]}  Rf7 {[%clk 0:01:47]} 17. f5 {[%clk 0:01:42]}  exf5 {[%clk 0:01:41]} 18. Rg6 {[%clk 0:01:36]}  Kh7 {[%clk 0:01:38]} 19. Qf4 {[%clk 0:01:26]}  Qe7 {[%clk 0:01:28]} 20. Rdg1 {[%clk 0:01:25]}  Raf8 {[%clk 0:01:25]} 21. Qg3 {[%clk 0:01:09]}  Kh8 {[%clk 0:01:13]} 22. f4 {[%clk 0:00:55]}  Re8 {[%clk 0:01:04]} 23. Kb1 {[%clk 0:00:49]}  c4 {[%clk 0:00:57]} 24. Be2 {[%clk 0:00:28]}  b5 {[%clk 0:00:43]} 25. Bd1 {[%clk 0:00:24]}  b4 {[%clk 0:00:40]} 26. Na4 {[%clk 0:00:24]}  Bc6 {[%clk 0:00:36]} 27. b3 {[%clk 0:00:24]}  Bxa4 {[%clk 0:00:30]} 28. bxa4 {[%clk 0:00:24]}  b3 {[%clk 0:00:23]} 29. axb3 {[%clk 0:00:21]}  cxb3 {[%clk 0:00:22]} 30. cxb3 {[%clk 0:00:22]}  Qe4+ {[%clk 0:00:17]} 31. Kb2 {[%clk 0:00:22]}  Ne2 {[%clk 0:00:13]} 32. Bxe2 {[%clk 0:00:17]}  Qxe2+ {[%clk 0:00:14]} 33. Ka3 {[%clk 0:00:18]}  Re3 {[%clk 0:00:09]} 34. Rxh6+ {[%clk 0:00:18]}  Kg8 {[%clk 0:00:06]} 35. Qg5 {[%clk 0:00:15]}  Rxb3+ {[%clk 0:00:03]} 36. Kxb3 {[%clk 0:00:14]}  Rb7+ {[%clk 0:00:04]} 37. Kc3 {[%clk 0:00:09]}  Qc4+ {[%clk 0:00:00]} 38. Kd2 {[%clk 0:00:10]} 1-0


[Site "https://www.chess.com"]

[Event "Titled Tuesday Blitz October 31 Late 2023"]
[White "Schut, Han"]
[Black "Skatchkov, Valery"]
[WhiteFideId "1005561"]
[BlackFideId "24195812"]
[WhiteElo "2292"]
[BlackElo "2581"]
[Result "0-1"]
[Round "1"]
[TimeControl "180+1"]
[Date "2023.10.31"]
[WhiteClock "0:00:16"]
[BlackClock "0:01:17"]
[Board "132"]

1. e4 {[%clk 0:02:57]}  e5 {[%clk 0:02:59]} 2. Nf3 {[%clk 0:02:54]}  d5 {[%clk 0:02:50]} 3. exd5 {[%clk 0:02:53]}  e4 {[%clk 0:02:47]} 4. Ne5 {[%clk 0:02:38]}  Qxd5 {[%clk 0:02:47]} 5. d4 {[%clk 0:02:37]}  exd3 {[%clk 0:02:47]} 6. Nxd3 {[%clk 0:02:37]}  Nf6 {[%clk 0:02:47]} 7. Nc3 {[%clk 0:02:30]}  Qf5 {[%clk 0:02:46]} 8. Be2 {[%clk 0:02:27]}  Bd6 {[%clk 0:02:44]} 9. O-O {[%clk 0:02:21]}  O-O {[%clk 0:02:34]} 10. Be3 {[%clk 0:02:11]}  Nc6 {[%clk 0:02:23]} 11. Bf3 {[%clk 0:02:03]}  Be6 {[%clk 0:02:21]} 12. g3 {[%clk 0:01:56]}  Rad8 {[%clk 0:02:19]} 13. Bg2 {[%clk 0:01:53]}  Rfe8 {[%clk 0:02:19]} 14. f3 {[%clk 0:01:52]}  Bxa2 {[%clk 0:01:54]} 15. Ne4 {[%clk 0:01:33]}  Bc4 {[%clk 0:01:45]} 16. Bg5 {[%clk 0:01:16]}  Be7 {[%clk 0:01:38]} 17. g4 {[%clk 0:00:48]}  Qg6 {[%clk 0:01:36]} 18. h4 {[%clk 0:00:47]}  Nxe4 {[%clk 0:01:35]} 19. Bxe7 {[%clk 0:00:45]}  Rxe7 {[%clk 0:01:26]} 20. fxe4 {[%clk 0:00:36]}  Qh6 {[%clk 0:01:25]} 21. h5 {[%clk 0:00:34]}  Qe3+ {[%clk 0:01:25]} 22. Kh1 {[%clk 0:00:34]}  Bxd3 {[%clk 0:01:24]} 23. cxd3 {[%clk 0:00:35]}  Rxd3 {[%clk 0:01:25]} 24. Qe1 {[%clk 0:00:31]}  Qxe1 {[%clk 0:01:23]} 25. Raxe1 {[%clk 0:00:32]}  f6 {[%clk 0:01:21]} 26. Rf5 {[%clk 0:00:30]}  Re5 {[%clk 0:01:20]} 27. g5 {[%clk 0:00:29]}  fxg5 {[%clk 0:01:19]} 28. Ref1 {[%clk 0:00:25]}  Rxf5 {[%clk 0:01:18]} 29. exf5 {[%clk 0:00:26]}  Kf7 {[%clk 0:01:17]} 30. Be4 {[%clk 0:00:24]}  Rd6 {[%clk 0:01:17]} 31. f6 {[%clk 0:00:23]}  Rxf6 {[%clk 0:01:17]} 32. Bxh7 {[%clk 0:00:16]}  Rxf1+ {[%clk 0:01:17]} 0-1


[Site "https://www.chess.com"]

[Event "Titled Tuesday Blitz October 31 Late 2023"]
[White "Matsuura, Frederico"]
[Black "Filipets, Egor"]
[WhiteFideId "2107848"]
[BlackFideId "13503928"]
[WhiteElo "2281"]
[BlackElo "2580"]
[Result "0-1"]
[Round "1"]
[TimeControl "180+1"]
[Date "2023.10.31"]
[WhiteClock "0:01:45"]
[BlackClock "0:02:20"]
[Board "134"]

1. d4 {[%clk 0:03:00]}  f5 {[%clk 0:02:56]} 2. e3 {[%clk 0:02:58]}  Nf6 {[%clk 0:02:56]} 3. Be2 {[%clk 0:02:59]}  g6 {[%clk 0:02:56]} 4. h4 {[%clk 0:02:58]}  h6 {[%clk 0:02:51]} 5. Nh3 {[%clk 0:02:57]}  Nc6 {[%clk 0:02:42]} 6. Nf4 {[%clk 0:02:55]}  e5 {[%clk 0:02:42]} 7. Nxg6 {[%clk 0:02:51]}  Rg8 {[%clk 0:02:40]} 8. Nxe5 {[%clk 0:02:45]}  Nxe5 {[%clk 0:02:40]} 9. dxe5 {[%clk 0:02:45]}  Ne4 {[%clk 0:02:40]} 10. Bh5+ {[%clk 0:02:43]}  Ke7 {[%clk 0:02:41]} 11. Qd5 {[%clk 0:02:31]}  Rg7 {[%clk 0:02:41]} 12. b3 {[%clk 0:02:28]}  d6 {[%clk 0:02:40]} 13. Bb2 {[%clk 0:02:17]}  Be6 {[%clk 0:02:31]} 14. Qxb7 {[%clk 0:01:45]}  Rxg2 {[%clk 0:02:20]} 0-1


[Site "https://www.chess.com"]

[Event "Titled Tuesday Blitz October 31 Late 2023"]
[White "Karttunen, Mika"]
[Black "Jahnz, Fabian"]
[WhiteFideId "502081"]
[BlackFideId "4653300"]
[WhiteElo "2579"]
[BlackElo "2281"]
[Result "1-0"]
[Round "1"]
[TimeControl "180+1"]
[Date "2023.10.31"]
[WhiteClock "0:01:36"]
[BlackClock "0:01:18"]
[Board "135"]

1. e4 {[%clk 0:03:00]}  c6 {[%clk 0:02:52]} 2. d4 {[%clk 0:03:00]}  d5 {[%clk 0:02:51]} 3. e5 {[%clk 0:03:00]}  Bf5 {[%clk 0:02:51]} 4. h4 {[%clk 0:03:00]}  Qc7 {[%clk 0:02:50]} 5. Bd3 {[%clk 0:02:59]}  Bxd3 {[%clk 0:02:50]} 6. Qxd3 {[%clk 0:03:00]}  e6 {[%clk 0:02:50]} 7. h5 {[%clk 0:02:57]}  Ne7 {[%clk 0:02:50]} 8. Nd2 {[%clk 0:02:54]}  Nd7 {[%clk 0:02:50]} 9. a4 {[%clk 0:02:51]}  c5 {[%clk 0:02:49]} 10. c3 {[%clk 0:02:49]}  h6 {[%clk 0:02:47]} 11. Ne2 {[%clk 0:02:48]}  Nc6 {[%clk 0:02:43]} 12. O-O {[%clk 0:02:44]}  Be7 {[%clk 0:02:42]} 13. Qg3 {[%clk 0:02:41]}  O-O {[%clk 0:02:39]} 14. Nf3 {[%clk 0:02:40]}  Kh7 {[%clk 0:02:39]} 15. Nf4 {[%clk 0:02:34]}  cxd4 {[%clk 0:02:34]} 16. cxd4 {[%clk 0:02:34]}  Qb6 {[%clk 0:02:30]} 17. Be3 {[%clk 0:02:33]}  Rab8 {[%clk 0:02:23]} 18. Nxe6 {[%clk 0:02:13]}  fxe6 {[%clk 0:02:11]} 19. Qg6+ {[%clk 0:02:13]}  Kh8 {[%clk 0:02:12]} 20. Qxe6 {[%clk 0:01:57]}  Qxb2 {[%clk 0:02:01]} 21. Qxd7 {[%clk 0:01:51]}  Rbd8 {[%clk 0:01:53]} 22. Qg4 {[%clk 0:01:50]}  b6 {[%clk 0:01:40]} 23. Rac1 {[%clk 0:01:49]}  Rc8 {[%clk 0:01:18]} 24. Qe6 {[%clk 0:01:36]} 1-0


[Site "https://www.chess.com"]

[Event "Titled Tuesday Blitz October 31 Late 2023"]
[White "Vifleemskaia, Svetlana"]
[Black "Kashefi, Amir Hosein"]
[WhiteFideId "4129490"]
[BlackFideId "12557935"]
[WhiteElo "2273"]
[BlackElo "2571"]
[Result "0-1"]
[Round "1"]
[TimeControl "180+1"]
[Date "2023.10.31"]
[WhiteClock "0:00:46"]
[BlackClock "0:00:30"]
[Board "138"]

1. d4 {[%clk 0:02:56]}  d5 {[%clk 0:02:56]} 2. c4 {[%clk 0:02:56]}  c6 {[%clk 0:02:56]} 3. cxd5 {[%clk 0:02:56]}  cxd5 {[%clk 0:02:54]} 4. Bf4 {[%clk 0:02:57]}  Nf6 {[%clk 0:02:53]} 5. Nc3 {[%clk 0:02:56]}  Nc6 {[%clk 0:02:54]} 6. e3 {[%clk 0:02:56]}  a6 {[%clk 0:02:54]} 7. h3 {[%clk 0:02:50]}  g6 {[%clk 0:02:45]} 8. Bd3 {[%clk 0:02:48]}  Bg7 {[%clk 0:02:46]} 9. Nf3 {[%clk 0:02:49]}  O-O {[%clk 0:02:46]} 10. O-O {[%clk 0:02:49]}  Bd7 {[%clk 0:02:45]} 11. Rc1 {[%clk 0:02:49]}  Rc8 {[%clk 0:02:45]} 12. Ne5 {[%clk 0:02:48]}  e6 {[%clk 0:01:53]} 13. a3 {[%clk 0:02:41]}  Nxe5 {[%clk 0:01:47]} 14. Bxe5 {[%clk 0:02:40]}  Bc6 {[%clk 0:01:45]} 15. b4 {[%clk 0:02:36]}  Nd7 {[%clk 0:01:39]} 16. Bxg7 {[%clk 0:02:24]}  Kxg7 {[%clk 0:01:39]} 17. a4 {[%clk 0:02:24]}  Nf6 {[%clk 0:01:22]} 18. b5 {[%clk 0:02:21]}  axb5 {[%clk 0:01:18]} 19. axb5 {[%clk 0:02:19]}  Bd7 {[%clk 0:01:16]} 20. Qb3 {[%clk 0:02:08]}  Qa5 {[%clk 0:01:11]} 21. Na4 {[%clk 0:01:46]}  Rxc1 {[%clk 0:01:07]} 22. Rxc1 {[%clk 0:01:44]}  Rc8 {[%clk 0:01:08]} 23. Rxc8 {[%clk 0:01:34]}  Bxc8 {[%clk 0:01:09]} 24. b6 {[%clk 0:01:20]}  Bd7 {[%clk 0:01:06]} 25. Nc5 {[%clk 0:01:19]}  Qe1+ {[%clk 0:01:00]} 26. Bf1 {[%clk 0:01:17]}  Bc6 {[%clk 0:01:00]} 27. g3 {[%clk 0:01:05]}  h5 {[%clk 0:00:56]} 28. Kg2 {[%clk 0:01:01]}  h4 {[%clk 0:00:41]} 29. g4 {[%clk 0:01:01]}  Nxg4 {[%clk 0:00:41]} 30. hxg4 {[%clk 0:01:00]}  h3+ {[%clk 0:00:41]} 31. Kxh3 {[%clk 0:00:54]}  Qxf1+ {[%clk 0:00:41]} 32. Kg3 {[%clk 0:00:54]}  Qg1+ {[%clk 0:00:40]} 33. Kf3 {[%clk 0:00:54]}  f5 {[%clk 0:00:34]} 34. Nxe6+ {[%clk 0:00:50]}  Kf6 {[%clk 0:00:34]} 35. gxf5 {[%clk 0:00:50]}  gxf5 {[%clk 0:00:31]} 36. Nf4 {[%clk 0:00:46]}  Qg4# {[%clk 0:00:30]} 0-1


[Site "https://www.chess.com"]

[Event "Titled Tuesday Blitz October 31 Late 2023"]
[White "Sargsyan, Anna M."]
[Black "Sramek, Vojtech"]
[WhiteFideId "13308130"]
[BlackFideId "358681"]
[WhiteElo "2570"]
[BlackElo "2267"]
[Result "1-0"]
[Round "1"]
[TimeControl "180+1"]
[Date "2023.10.31"]
[WhiteClock "0:01:00"]
[BlackClock "0:00:00"]
[Board "139"]

1. d4 {[%clk 0:02:48]}  d5 {[%clk 0:02:59]} 2. c4 {[%clk 0:02:45]}  c6 {[%clk 0:02:59]} 3. Nc3 {[%clk 0:02:43]}  Nf6 {[%clk 0:03:00]} 4. Nf3 {[%clk 0:02:44]}  e6 {[%clk 0:02:59]} 5. e3 {[%clk 0:02:39]}  Nbd7 {[%clk 0:02:58]} 6. Bd3 {[%clk 0:02:38]}  dxc4 {[%clk 0:02:58]} 7. Bxc4 {[%clk 0:02:39]}  b5 {[%clk 0:02:58]} 8. Bd3 {[%clk 0:02:37]}  Bb7 {[%clk 0:02:59]} 9. Qc2 {[%clk 0:02:34]}  a6 {[%clk 0:02:55]} 10. e4 {[%clk 0:02:34]}  c5 {[%clk 0:02:51]} 11. e5 {[%clk 0:02:25]}  Nd5 {[%clk 0:02:47]} 12. Nxd5 {[%clk 0:02:24]}  Bxd5 {[%clk 0:02:43]} 13. Be4 {[%clk 0:02:25]}  cxd4 {[%clk 0:02:27]} 14. Bxd5 {[%clk 0:02:19]}  exd5 {[%clk 0:02:08]} 15. Nxd4 {[%clk 0:02:18]}  Nxe5 {[%clk 0:01:59]} 16. O-O {[%clk 0:02:18]}  Bd6 {[%clk 0:01:36]} 17. f4 {[%clk 0:02:08]}  Ng6 {[%clk 0:01:18]} 18. f5 {[%clk 0:02:08]}  Ne5 {[%clk 0:01:16]} 19. f6 {[%clk 0:02:08]}  O-O {[%clk 0:01:11]} 20. fxg7 {[%clk 0:02:03]}  Re8 {[%clk 0:01:05]} 21. Nf5 {[%clk 0:02:03]}  Ra7 {[%clk 0:00:49]} 22. Be3 {[%clk 0:01:45]}  Rc7 {[%clk 0:00:47]} 23. Nh6+ {[%clk 0:01:15]}  Kxg7 {[%clk 0:00:44]} 24. Qf5 {[%clk 0:01:16]}  Qe7 {[%clk 0:00:33]} 25. Bg5 {[%clk 0:01:04]}  Qe6 {[%clk 0:00:32]} 26. Bf6+ {[%clk 0:01:05]}  Kf8 {[%clk 0:00:28]} 27. Qxh7 {[%clk 0:01:05]}  Nf3+ {[%clk 0:00:04]} 28. Rxf3 {[%clk 0:01:00]}  Bc5+ {[%clk 0:00:05]} 29. Kh1 {[%clk 0:00:59]}  Qe1+ {[%clk 0:00:00]} 30. Rf1 {[%clk 0:01:00]} 1-0


[Site "https://www.chess.com"]

[Event "Titled Tuesday Blitz October 31 Late 2023"]
[White "Lock, Gavin R"]
[Black "Erdogan, Anil Berk"]
[WhiteFideId "408646"]
[BlackFideId "6348173"]
[WhiteElo "2258"]
[BlackElo "2563"]
[Result "0-1"]
[Round "1"]
[TimeControl "180+1"]
[Date "2023.10.31"]
[WhiteClock "0:00:00"]
[BlackClock "0:01:04"]
[Board "142"]

1. e4 {[%clk 0:02:56]}  c5 {[%clk 0:02:58]} 2. Nf3 {[%clk 0:02:55]}  g6 {[%clk 0:02:59]} 3. c3 {[%clk 0:02:55]}  Bg7 {[%clk 0:02:58]} 4. d4 {[%clk 0:02:54]}  cxd4 {[%clk 0:02:59]} 5. cxd4 {[%clk 0:02:54]}  d5 {[%clk 0:03:00]} 6. e5 {[%clk 0:02:55]}  Bg4 {[%clk 0:03:00]} 7. Bb5+ {[%clk 0:02:49]}  Nd7 {[%clk 0:03:00]} 8. O-O {[%clk 0:02:38]}  e6 {[%clk 0:02:59]} 9. Nc3 {[%clk 0:02:36]}  Ne7 {[%clk 0:02:59]} 10. Be3 {[%clk 0:02:20]}  O-O {[%clk 0:02:58]} 11. Be2 {[%clk 0:02:08]}  Nc6 {[%clk 0:02:52]} 12. Ne1 {[%clk 0:01:59]}  Bxe2 {[%clk 0:02:52]} 13. Nxe2 {[%clk 0:01:59]}  f6 {[%clk 0:02:45]} 14. f4 {[%clk 0:01:46]}  Qb6 {[%clk 0:02:42]} 15. Qd2 {[%clk 0:01:43]}  Rac8 {[%clk 0:02:34]} 16. Nf3 {[%clk 0:01:41]}  Na5 {[%clk 0:02:30]} 17. b3 {[%clk 0:01:40]}  Rc7 {[%clk 0:02:20]} 18. Rac1 {[%clk 0:01:38]}  Rfc8 {[%clk 0:02:20]} 19. Kf2 {[%clk 0:01:23]}  Nc6 {[%clk 0:02:17]} 20. g3 {[%clk 0:01:17]}  a5 {[%clk 0:02:11]} 21. Nc3 {[%clk 0:01:10]}  Nb4 {[%clk 0:02:08]} 22. Na4 {[%clk 0:01:05]}  Qb5 {[%clk 0:02:02]} 23. Kg1 {[%clk 0:00:42]}  Rc2 {[%clk 0:01:57]} 24. Qd1 {[%clk 0:00:32]}  Qd3 {[%clk 0:01:38]} 25. Qxd3 {[%clk 0:00:24]}  Nxd3 {[%clk 0:01:39]} 26. Rxc2 {[%clk 0:00:23]}  Rxc2 {[%clk 0:01:39]} 27. Ne1 {[%clk 0:00:09]}  Nxe1 {[%clk 0:01:19]} 28. Rxe1 {[%clk 0:00:09]}  Rxa2 {[%clk 0:01:09]} 29. Rc1 {[%clk 0:00:09]}  fxe5 {[%clk 0:01:08]} 30. dxe5 {[%clk 0:00:09]}  b5 {[%clk 0:01:08]} 31. Rc8+ {[%clk 0:00:04]}  Bf8 {[%clk 0:01:07]} 32. Nc5 {[%clk 0:00:02]}  Rc2 {[%clk 0:01:04]} 33. Rxf8+ {[%clk 0:00:01]}  Nxf8 {[%clk 0:01:03]} 34. Nd7 {[%clk 0:00:00]}  Nxd7 {[%clk 0:01:04]} 0-1


[Site "https://www.chess.com"]

[Event "Titled Tuesday Blitz October 31 Late 2023"]
[White "Przybylski, Wojciech"]
[Black "Florianovitz, Derlei Alex"]
[WhiteFideId "1117599"]
[BlackFideId "2114178"]
[WhiteElo "2562"]
[BlackElo "2247"]
[Result "1-0"]
[Round "1"]
[TimeControl "180+1"]
[Date "2023.10.31"]
[WhiteClock "0:00:16"]
[BlackClock "0:00:00"]
[Board "143"]

1. d4 {[%clk 0:02:59]}  Nf6 {[%clk 0:02:59]} 2. c4 {[%clk 0:02:59]}  e6 {[%clk 0:02:57]} 3. g3 {[%clk 0:02:57]}  d5 {[%clk 0:02:56]} 4. Bg2 {[%clk 0:02:57]}  Be7 {[%clk 0:02:56]} 5. Nf3 {[%clk 0:02:57]}  c6 {[%clk 0:02:56]} 6. O-O {[%clk 0:02:57]}  O-O {[%clk 0:02:56]} 7. Re1 {[%clk 0:02:54]}  Nbd7 {[%clk 0:02:57]} 8. a3 {[%clk 0:02:53]}  b6 {[%clk 0:02:56]} 9. Nc3 {[%clk 0:02:52]}  Ba6 {[%clk 0:02:54]} 10. cxd5 {[%clk 0:02:42]}  cxd5 {[%clk 0:02:54]} 11. Bf4 {[%clk 0:02:42]}  b5 {[%clk 0:02:34]} 12. Rc1 {[%clk 0:02:40]}  Rc8 {[%clk 0:02:32]} 13. h3 {[%clk 0:02:30]}  Qa5 {[%clk 0:02:29]} 14. Bd2 {[%clk 0:02:14]}  Qb6 {[%clk 0:02:29]} 15. Qb3 {[%clk 0:02:10]}  Ne4 {[%clk 0:02:19]} 16. Bf4 {[%clk 0:02:08]}  Nxc3 {[%clk 0:02:16]} 17. Rxc3 {[%clk 0:02:03]}  Rxc3 {[%clk 0:02:15]} 18. bxc3 {[%clk 0:01:52]}  Nf6 {[%clk 0:02:13]} 19. Ne5 {[%clk 0:01:47]}  h6 {[%clk 0:02:03]} 20. Kh2 {[%clk 0:01:39]}  Rc8 {[%clk 0:01:59]} 21. Rc1 {[%clk 0:01:34]}  Qa5 {[%clk 0:01:52]} 22. Nd3 {[%clk 0:01:30]}  Qxa3 {[%clk 0:01:43]} 23. Qxa3 {[%clk 0:01:07]}  Bxa3 {[%clk 0:01:41]} 24. Ra1 {[%clk 0:01:07]}  b4 {[%clk 0:01:41]} 25. Nxb4 {[%clk 0:01:03]}  Bxb4 {[%clk 0:01:38]} 26. cxb4 {[%clk 0:00:56]}  Bxe2 {[%clk 0:01:18]} 27. Rxa7 {[%clk 0:00:56]}  Rc4 {[%clk 0:01:13]} 28. Ra2 {[%clk 0:00:50]}  Bd3 {[%clk 0:01:10]} 29. Rb2 {[%clk 0:00:49]}  Nd7 {[%clk 0:00:53]} 30. Be3 {[%clk 0:00:45]}  Rc2 {[%clk 0:00:38]} 31. Rxc2 {[%clk 0:00:38]}  Bxc2 {[%clk 0:00:39]} 32. Bf1 {[%clk 0:00:39]}  Ba4 {[%clk 0:00:38]} 33. Bf4 {[%clk 0:00:35]}  Kf8 {[%clk 0:00:36]} 34. Bd6+ {[%clk 0:00:33]}  Ke8 {[%clk 0:00:36]} 35. b5 {[%clk 0:00:33]}  Nf6 {[%clk 0:00:30]} 36. f3 {[%clk 0:00:31]}  Kd7 {[%clk 0:00:29]} 37. Bf8 {[%clk 0:00:31]}  Ne8 {[%clk 0:00:22]} 38. Kg2 {[%clk 0:00:31]}  h5 {[%clk 0:00:22]} 39. Kf2 {[%clk 0:00:31]}  g6 {[%clk 0:00:22]} 40. Ke3 {[%clk 0:00:31]}  Kc7 {[%clk 0:00:08]} 41. Bc5 {[%clk 0:00:27]}  Kb7 {[%clk 0:00:08]} 42. Kf4 {[%clk 0:00:26]}  Nc7 {[%clk 0:00:06]} 43. Ke5 {[%clk 0:00:23]}  Nxb5 {[%clk 0:00:06]} 44. Kf6 {[%clk 0:00:22]}  Nc3 {[%clk 0:00:02]} 45. Kxf7 {[%clk 0:00:21]}  Bc2 {[%clk 0:00:03]} 46. Kxe6 {[%clk 0:00:20]}  Bf5+ {[%clk 0:00:02]} 47. Kf6 {[%clk 0:00:19]}  Nd1 {[%clk 0:00:03]} 48. g4 {[%clk 0:00:19]}  hxg4 {[%clk 0:00:03]} 49. fxg4 {[%clk 0:00:19]}  Be4 {[%clk 0:00:03]} 50. h4 {[%clk 0:00:19]}  Ne3 {[%clk 0:00:04]} 51. Be2 {[%clk 0:00:19]}  Ng2 {[%clk 0:00:01]} 52. h5 {[%clk 0:00:19]}  gxh5 {[%clk 0:00:01]} 53. gxh5 {[%clk 0:00:19]}  Nf4 {[%clk 0:00:02]} 54. Bg4 {[%clk 0:00:20]}  Kc6 {[%clk 0:00:02]} 55. Kg5 {[%clk 0:00:19]}  Ng2 {[%clk 0:00:01]} 56. Bf8 {[%clk 0:00:16]}  Ne3 {[%clk 0:00:00]} 57. Be2 {[%clk 0:00:16]} 1-0


[Site "https://www.chess.com"]